lending/lending_fUSD_20260317
["ID","MTS","AMOUNT","RATE_DAILY","PERIOD"]
[408503212,1773771043543,-4171.58106654,0.00017471,2]
[408503213,1773771043554,-500.0,0.00017525,2]
[408503214,1773771043565,-306.512365,0.00017534,7]
[408503215,1773771043575,-171.21042,0.00017534,7]
[408503216,1773771043585,-352.628103,0.00017534,7]
[408503217,1773771043594,-367.949109,0.00017534,7]
[408503218,1773771043605,-451.315149,0.00017534,7]
[408503220,1773771043615,-354.821742,0.00017534,7]
[408503221,1773771043624,-280.881259,0.00017534,7]
[408503222,1773771043634,-198.191016,0.00017534,7]
[408503223,1773771043644,-356.652587,0.00017534,7]
[408503224,1773771043654,-313.155964,0.00017534,7]
[408503225,1773771043664,-4171.58106654,0.00017614,2]
[408503226,1773771043674,-3200.03,0.00017619,2]
[408503227,1773771043683,-683.23501295,0.00017668,2]
[408503228,1773771043693,-2078.71796947,0.00017682,2]
[408503229,1773771043714,-1386.7115751,0.00017682,2]
[408503231,1773771043723,-700.0,0.00017755,2]
[408503233,1773771043733,-912.82834897,0.00017757,2]
[408503234,1773771043745,-3258.75271757,0.00017757,2]
[408503235,1773771043754,-150.33717718,0.000178,2]
[408503236,1773771043765,-254.92642035,0.00017856,2]
[408503252,1773771046001,-382.94399198,0.00017456,2]
[408503253,1773771046015,-216.16505865,0.00017456,2]
[408503254,1773771046026,-83.98619453,0.00017856,2]
[408503255,1773771046038,-661.08738512,0.00017856,2]
[408503256,1773771046048,-500.0,0.00017873,2]
[408503257,1773771046058,-504.87765582,0.00017873,2]
[408503258,1773771046068,-285.07258462,0.00017882,2]
[408503259,1773771046078,-500.0,0.00017891,2]
[408503260,1773771046088,-171.76082566,0.00017891,2]
[408503261,1773771046112,-29.09917434,0.00017891,2]
[408503262,1773771046122,-500.0,0.00017891,2]
[408503263,1773771046132,-343.15609865,0.00017891,2]
[408503264,1773771046144,-156.84390135,0.00017891,2]
[408503265,1773771046155,-193.15609865,0.00017891,2]
[408503266,1773771046166,-306.84390135,0.00017891,2]
[408503267,1773771046177,-500.0,0.00017891,2]
[408503268,1773771046187,-242.64153386,0.00017891,2]
[408503269,1773771046197,-315.1097082,0.00017891,2]
[408503270,1773771046207,-132.85485659,0.00017891,2]
[408503271,1773771046219,-367.14514341,0.00017891,2]
[408503272,1773771046229,-559.97903776,0.00017891,2]
[408503273,1773771046239,-71.87581883,0.00017891,2]
[408503275,1773771276113,-1480.1,0.00013403,2]
[408503276,1773771276139,-80779.9,0.00013403,2]
[408503277,1773772204450,267.0,9.199e-05,2]
[408503282,1773772232224,-267.0,0.00010199,2]
[408503283,1773772232234,-86.5,0.00011199,2]
[408503284,1773772232280,-180.5,0.00011199,2]
[408503285,1773772232290,-267.0,0.00012199,2]
[408503286,1773772232299,-267.0,0.00013199,2]
[408503287,1773772232308,-1200.0,0.00013301,2]
[408503288,1773772232317,-300.0,0.00013302,2]
[408503289,1773772232326,-150.0,0.00013302,2]
[408503290,1773772232335,-358.18864893,0.00013303,2]
[408503291,1773772232344,-5916.55292809,0.00013303,2]
[408503292,1773772232355,-643.82857995,0.00013303,2]
[408503293,1773772232368,-18561.85866629,0.00013303,2]
[408503294,1773772232383,-69227.86222567,0.00013303,2]
[408503295,1773772232392,-4984.0719,0.00013403,2]
[408503296,1773772232402,-3240.0,0.00014034,2]
[408503297,1773772232411,-4866.13,0.00014183,2]
[408503298,1773772232420,-267.0,0.00014199,2]
[408503299,1773772232429,-200.0,0.00014316,2]
[408503300,1773772232438,-774.56,0.00014316,2]
[408503301,1773772232448,-150.0,0.00014316,2]
[408503303,1773772232460,-1164.72,0.00014316,2]
[408503305,1773772232469,-194.0,0.00014406,2]
[408503307,1773772232479,-7384.06553743,0.00014414,2]
[408503309,1773772232488,-17356.85,0.0001443,2]
[408503311,1773772232497,-1112.2956,0.00014504,2]
[408503312,1773772232506,-2500.0,0.00014514,2]
[408503314,1773772232515,-985.82400879,0.00014514,2]
[408503315,1773772232527,-409.20861769,0.00014514,2]
[408503316,1773772232536,-239.64362027,0.00014514,2]
[408503317,1773772232545,-50.14776204,0.00014583,2]
[408503318,1773772232556,-369.85223796,0.00014583,2]
[408503319,1773772232566,-548.52,0.00014604,2]
[408503320,1773772232575,-548.52,0.00014604,2]
[408503321,1773772232584,-200.0,0.00014605,2]
[408503322,1773772232593,-500.0,0.00014613,2]
[408503323,1773772232603,-500.0,0.00014613,2]
[408503324,1773772232613,-500.0,0.00014613,2]
[408503325,1773772232623,-496.12967797,0.00014613,2]
[408503326,1773772232633,-500.0,0.00014613,2]
[408503327,1773772232642,-500.0,0.00014613,2]
[408503328,1773772232651,-500.0,0.00014613,2]
[408503329,1773772232661,-500.0,0.00014613,2]
[408503330,1773772232675,-254.56225783,0.00014613,2]
[408503331,1773772232684,-500.0,0.00014613,2]
[408503332,1773772232694,-500.0,0.00014613,2]
[408503333,1773772232703,-500.0,0.00014613,2]
[408503334,1773772232713,-500.0,0.00014613,2]
[408503335,1773772232722,-500.0,0.00014613,2]
[408503336,1773772232731,-500.0,0.00014613,2]
[408503337,1773772232741,-499.99999999,0.00014613,2]
[408503338,1773772232750,-623.61,0.00014613,2]
[408503339,1773772232984,-500.0,0.00014613,2]
[408503340,1773772232996,-500.0,0.00014613,2]
[408503341,1773772233006,-317.38991143,0.00014613,2]
[408503342,1773772233015,-2769.566748,0.00014614,2]
[408503343,1773772233024,-239330.1681371,0.00014614,2]
[408503344,1773772233033,-611.9427304,0.00014614,2]
[408503345,1773772233043,-2242.2282895,0.00014614,2]
[408503346,1773772233052,-2926.1596365,0.00014614,2]
[408503347,1773772233061,-11455.7272127,0.00014614,2]
[408503348,1773772233070,-1151.0,0.00014631,2]
[408503349,1773772233079,-500.0,0.00014673,2]
[408503350,1773772233088,-500.0,0.00014673,2]
[408503351,1773772233097,-500.0,0.00014673,2]
[408503352,1773772233106,-500.0,0.00014673,2]
[408503353,1773772233116,-500.0,0.00014673,2]
[408503354,1773772233124,-500.0,0.00014673,2]
[408503355,1773772233133,-7384.06553734,0.00014801,2]
[408503356,1773772233143,-623.61,0.00014887,2]
[408503357,1773772233152,-239.64362025,0.0001489,2]
[408503358,1773772233161,-1395.03262648,0.00014998,2]
[408503359,1773772233170,-3228.0,0.00015,2]
[408503360,1773772233179,-200.0,0.00015153,2]
[408503361,1773772233188,-623.61,0.00015161,2]
[408503362,1773772233197,-7384.06553734,0.00015189,2]
[408503363,1773772233206,-500.0,0.00015221,2]
[408503364,1773772233216,-239.64362025,0.00015266,2]
[408503365,1773772233225,-623.61,0.00015435,2]
[408503366,1773772233234,-1395.03262648,0.00015481,2]
[408503367,1773772233243,-7384.06553734,0.00015576,2]
[408503368,1773772233252,-239.64362025,0.00015643,2]
[408503369,1773772233261,-5533.0,0.000157,3]
[408503370,1773772233270,-623.61,0.00015709,2]
[408503371,1773772233279,-548.52,0.00015914,2]
[408503372,1773772233288,-929.37600956,0.00015924,2]
[408503373,1773772233297,-7384.06553734,0.00015963,2]
[408503374,1773772233307,-1395.03262648,0.00015965,2]
[408503375,1773772233315,-623.64,0.00015983,2]
[408503376,1773772233324,-587.0,0.00015988,2]
[408503377,1773772233333,-1344.0,0.00015988,2]
[408503378,1773772233342,-6004.0,0.00015988,2]
[408503379,1773772233351,-239.64362025,0.00016019,2]
[408503380,1773772233361,-1000.0,0.000161,2]
[408503381,1773772233370,-500.0,0.0001635,2]
[408503382,1773772233381,-500.0,0.0001635,2]
[408503383,1773772233391,-4706.58447165,0.00016351,2]
[408503384,1773772233403,-2677.48106569,0.00016351,2]
[408503385,1773772233413,-239.64362025,0.00016395,2]
[408503386,1773772233422,-2400.0,0.000164,2]
[408503387,1773772233430,-1538.0,0.000164,2]
[408503388,1773772233439,-376.0,0.000164,2]
[408503389,1773772233448,-5533.0,0.000164,5]
[408503390,1773772233457,-2242.2282895,0.00016404,2]
[408503391,1773772233466,-1395.03262648,0.00016449,2]
[408503392,1773772233475,-611.9427304,0.00016542,2]
[408503393,1773772233484,-166.66,0.00016712,2]
[408503394,1773772233493,-2400.0,0.0001672,2]
[408503395,1773772233503,-161.0,0.0001672,2]
[408503396,1773772233515,-161.0,0.0001672,2]
[408503397,1773772233528,-1538.0,0.0001672,2]
[408503398,1773772233537,-7384.06553734,0.00016738,2]
[408503399,1773772233546,-11455.7272127,0.00016752,2]
[408503400,1773772233555,-2926.1596365,0.00016757,2]
[408503401,1773772233564,-239.64362025,0.00016771,2]
[408503402,1773772233574,-1260.0,0.0001678,2]
[408503403,1773772233583,-1214.0,0.0001678,2]
[408503404,1773772233592,-923.0,0.0001678,2]
[408503405,1773772233601,-500.0,0.000169,6]
[408503406,1773772233610,-1395.03262648,0.00016933,2]
[408503407,1773772233619,-500.0,0.00016999,2]
[408503408,1773772233628,-644.96,0.00016999,2]
[408503409,1773772233637,-664.61455226,0.00016999,2]
[408503410,1773772233646,-1384.22,0.00017033,2]
[408503411,1773772233655,-2400.0,0.0001704,2]
[408503412,1773772233664,-166.66,0.00017059,2]
[408503413,1773772233673,-167.96,0.00017067,2]
[408503414,1773772233685,-167.96,0.00017067,2]
[408503415,1773772233695,-501.74111533,0.00017073,2]
[408503416,1773772233704,-504.87765582,0.00017073,2]
[408503417,1773772233713,-500.0,0.00017073,2]
[408503418,1773772233722,-378.52831222,0.00017081,2]
[408503419,1773772233735,-169.99168778,0.00017081,2]
[408503420,1773772233743,-548.52,0.00017082,2]
[408503421,1773772233753,-500.0,0.00017091,2]
[408503422,1773772233764,-500.0,0.00017091,2]
[408503423,1773772233774,-256.32956829,0.00017091,2]
[408503424,1773772233783,-220.57679574,0.00017091,2]
[408503425,1773772233793,-500.0,0.00017091,2]
[408503426,1773772233802,-500.0,0.00017091,2]
[408503427,1773772233811,-220.42258079,0.00017091,2]
[408503428,1773772233821,-500.0,0.00017091,2]
[408503429,1773772233829,-500.0,0.00017091,2]
[408503430,1773772233838,-219.84907371,0.00017091,2]
[408503431,1773772233847,-500.0,0.00017092,2]
[408503432,1773772233856,-85724.25622141,0.00017092,2]
[408503433,1773772233867,-91692.5734694,0.00017092,2]
[408503434,1773772238310,-4847.94218682,0.00017092,2]
[408503435,1773772238367,-997.91895596,0.00017092,2]
[408503436,1773772238424,-25980.6833211,0.00017092,2]
[408503437,1773772238480,-6088.21267175,0.00017092,2]
[408503439,1773772238492,-23998.58131066,0.00017092,2]
[408503441,1773772238502,-2769.566748,0.00017096,2]
[408503443,1773772238511,-7384.06553734,0.00017125,2]
[408503445,1773772238520,-161.0,0.00017127,2]
[408503447,1773772238529,-500.0,0.00017147,2]
[408503449,1773772238538,-239.64362025,0.00017148,2]
[408503451,1773772238547,-500.0,0.00017202,2]
[408503453,1773772238556,-500.0,0.00017249,2]
[408503454,1773772238565,-161.0,0.0001736,2]
[408503455,1773772238574,-1538.0,0.00017396,2]
[408503456,1773772238583,-1000.0,0.000174,6]
[408503457,1773772238592,-1395.03262648,0.00017416,2]
[408503459,1773772238602,-500.0,0.00017453,2]
[408503460,1773772238612,-1500.0,0.000175,6]
[408503461,1773772238621,-7384.06553734,0.00017513,2]
[408503462,1773772238631,-500.0,0.00017516,2]
[408503463,1773772238640,-239.64362025,0.00017524,2]
[408503464,1773772238649,-823.0,0.00017528,2]
[408503465,1773772238658,-277.407022,0.00017533,7]
[408503466,1773772238668,-376.651954,0.00017533,7]
[408503467,1773772238677,-182.754741,0.00017542,7]
[408503468,1773772238691,-245.169306,0.00017542,7]
[408503469,1773772238701,-256.678699,0.0001758,7]
[408503470,1773772238710,-210.21710931,0.000176,2]
[408503471,1773772238719,-2100.0,0.000176,6]
[408503472,1773772238729,-500.0,0.00017601,2]
[408503473,1773772238739,-506.88410936,0.00017621,2]
[408503474,1773772238749,-455.569237,0.0001764,7]
[408503475,1773772238759,-3608.0595911,0.00017641,2]
[408503476,1773772238768,-500.0,0.00017665,2]
[408503477,1773772238778,-1538.0,0.0001768,2]
[408503478,1773772238787,-2600.0,0.000177,6]
[408503479,1773772238797,-5000.0,0.00017791,2]
[408503480,1773772238807,-153.54892845,0.000178,2]
[408503481,1773772238816,-500.0,0.000178,6]
[408503482,1773772238825,-200.0,0.00017856,2]
[408503483,1773772238835,-168.759,0.00017879,2]
[408503484,1773772238844,-1088.0,0.00017889,5]
[408503485,1773772238853,-151.0,0.00017889,2]
[408503486,1773772238863,-200.0,0.00017891,2]
[408503487,1773772238872,-151.0,0.00017891,2]
[408503488,1773772238882,-500.0,0.00017891,2]
[408503489,1773772238892,-644.96,0.00017891,2]
[408503490,1773772238901,-500.0,0.00017891,2]
[408503491,1773772238911,-200.86,0.00017891,2]
[408503492,1773772238920,-500.0,0.00017891,2]
[408503493,1773772238929,-1319.21296274,0.00017891,2]
[408503494,1773772238938,-200.0,0.00017891,2]
[408503495,1773772238947,-826.91,0.00017891,2]
[408503496,1773772238957,-826.91,0.00017891,2]
[408503497,1773772238966,-826.91,0.00017891,2]
[408503498,1773772238975,-826.91,0.00017891,2]
[408503499,1773772238985,-200.0,0.00017891,2]
[408503500,1773772238996,-35846.82745354,0.000179,2]
[408503516,1773772243356,-603.0,0.00015988,2]
[408503519,1773772243466,-937.70955075,0.00015988,2]
[408503520,1773772243478,-303.81518612,0.00015988,2]
[408503521,1773772243683,-1666.47526313,0.00015988,2]
[408503522,1773772243693,-2342.52227497,0.000179,2]
[408503534,1773772246176,-261.02,0.000179,2]
[408503535,1773772246462,-2327.18820279,0.00017791,2]
[408503538,1773772307301,187.0,8.739e-05,2]
[408503539,1773772410380,178.0,8.302e-05,2]
[408503540,1773772410644,178.0,9.302e-05,2]
[408503541,1773772439741,6000.0,0.00032877,120]
[408503542,1773772511627,160.0,7.887e-05,2]
[408503543,1773772511885,160.0,8.887e-05,2]
[408503544,1773772622491,152.0,7.887e-05,2]
[408503545,1773772622753,152.0,8.887e-05,2]
[408503546,1773772706572,152.0,7.887e-05,2]
[408503547,1773772706830,152.0,8.887e-05,2]
[408503548,1773772787597,152.0,7.887e-05,2]
[408503549,1773772831959,2000.0,0.00032877,120]
[408503550,1773772839511,2000.0,0.00032877,120]
[408503551,1773772845684,2000.0,0.00032877,120]
[408503552,1773772851549,2000.0,0.00032877,120]
[408503553,1773772858479,2000.0,0.00032877,120]
[408503554,1773772870164,2442.0,0.00032877,120]
[408503555,1773773073354,244.0,6.829e-05,2]
[408503556,1773773246141,-217.957864,0.00012049,2]
[408503557,1773773246162,-190.84644472,0.00012109,2]
[408503558,1773773246184,-2386.76,0.00012138,2]
[408503559,1773773246206,-3363.87407476,0.0001221,2]
[408503560,1773773246229,-260.0,0.00012743,2]
[408503561,1773773246252,-1200.0,0.00013102,2]
[408503562,1773773246274,-300.0,0.00013102,2]
[408503563,1773773246296,-174.37907831,0.00013103,2]
[408503564,1773773246317,-3933.95430577,0.00013103,2]
[408503565,1773773246339,-7354.4582984,0.00013103,2]
[408503566,1773773246359,-14631.51555653,0.00013103,2]
[408503572,1773773431436,-301.55419742,0.000131,2]
[408503573,1773773431447,-15421.07705337,0.00013102,2]
[408503574,1773773431459,-270136.76346124,0.00013102,2]
[408503575,1773773431472,-1172.85452702,0.00013102,2]
[408503576,1773773431488,-462.11065713,0.00013102,2]
[408503577,1773773431501,-781.51955281,0.00013102,2]
[408503578,1773773431512,-577.69225892,0.00013102,2]
[408503579,1773773431529,-2000.00000001,0.00013102,2]
[408503587,1773773437454,-618.6790189,0.00013102,2]
[408503588,1773773437467,-556.0,0.00013102,2]
[408503589,1773773437507,-1310.38674493,0.00013102,2]
[408503590,1773773437520,-2338.72607654,0.00013102,2]
[408503591,1773773437589,-245.46071807,0.00013102,2]
[408503592,1773773437601,-11193.00000001,0.00013102,2]
[408503593,1773773437622,-1534.490339,0.00013102,2]
[408503594,1773773437643,-690.45,0.00013102,2]
[408503595,1773773437656,-618.24385212,0.00013102,2]
[408503600,1773773437773,-67428.73001541,0.00013102,2]
[408503601,1773773440228,-182678.10324147,0.00013102,2]
[408503602,1773773440240,-2010.50568305,0.00013102,2]
[408503603,1773773440251,-11441.07984347,0.00013103,2]
[408503604,1773773440261,-150.0,0.00013201,2]
[408503605,1773773440270,-43698.27812366,0.00013202,2]
[408503606,1773773440280,-194.95136198,0.00013202,2]
[408503607,1773773440290,-148.62302764,0.00013202,2]
[408503612,1773773442538,-351.37697236,0.00013202,2]
[408503613,1773773442550,-500.0,0.00013202,2]
[408503614,1773773442561,-500.0,0.00013202,2]
[408503615,1773773442571,-500.0,0.00013202,2]
[408503616,1773773442581,-219.6129678,0.00013202,2]
[408503617,1773773442591,-500.0,0.00013202,2]
[408503618,1773773442601,-500.0,0.00013202,2]
[408503619,1773773442611,-500.0,0.00013202,2]
[408503620,1773773442620,-500.0,0.00013202,2]
[408503621,1773773442630,-500.0,0.00013202,2]
[408503622,1773773442639,-500.0,0.00013202,2]
[408503623,1773773442649,-43873.7625,0.00013203,2]
[408503624,1773773442659,-4552.41567714,0.00013254,2]
[408503625,1773773442668,-166.66,0.00013577,2]
[408503626,1773773442678,-3933.95430575,0.00013636,2]
[408503627,1773773442688,-7354.45829836,0.00013636,2]
[408503628,1773773442698,-1500.0,0.00013682,2]
[408503629,1773773442709,-500.0,0.00013698,2]
[408503630,1773773442718,-619.28774558,0.00013698,2]
[408503631,1773773442728,-373.47479422,0.00013698,2]
[408503632,1773773442738,-500.0,0.00013698,2]
[408503633,1773773442748,-500.0,0.00013698,2]
[408503634,1773773442757,-265.99573624,0.00013698,2]
[408503635,1773773442767,-166.66,0.00013863,2]
[408503636,1773773442776,-166.66,0.00014148,2]
[408503637,1773773442786,-3933.95430575,0.00014169,2]
[408503638,1773773442795,-7354.45829836,0.00014169,2]
[408503639,1773773442805,-600.0,0.00014413,2]
[408503640,1773773442814,-600.0,0.00014413,2]
[408503641,1773773442824,-600.0,0.00014413,2]
[408503642,1773773442834,-600.0,0.00014413,2]
[408503643,1773773442845,-600.0,0.00014413,2]
[408503644,1773773442855,-300.0,0.00014413,2]
[408503645,1773773442865,-300.0,0.00014413,2]
[408503646,1773773442875,-300.0,0.00014413,2]
[408503647,1773773442884,-166.66,0.00014434,2]
[408503648,1773773442894,-1280.3045,0.00014513,2]
[408503649,1773773442904,-1000.0,0.00014513,2]
[408503651,1773773442913,-500.0,0.000146,2]
[408503653,1773773442923,-500.0,0.00014613,2]
[408503656,1773773442933,-500.0,0.00014613,2]
[408503658,1773773442944,-500.0,0.00014613,2]
[408503660,1773773442953,-500.0,0.00014613,2]
[408503661,1773773442963,-553.49386102,0.00014613,2]
[408503662,1773773442976,-500.0,0.00014613,2]
[408503663,1773773442986,-500.0,0.00014613,2]
[408503664,1773773442995,-500.0,0.00014613,2]
[408503665,1773773443005,-500.0,0.00014613,2]
[408503666,1773773443015,-3933.95430575,0.00014702,2]
[408503669,1773773443168,-7354.45829836,0.00014702,2]
[408503670,1773773443179,-166.66,0.0001472,2]
[408503671,1773773443189,-162.45,0.00014878,2]
[408503672,1773773443199,-1852.42,0.00014878,2]
[408503673,1773773443210,-2000.0,0.00014878,2]
[408503674,1773773443219,-250.0,0.00015,2]
[408503675,1773773443230,-166.66,0.00015006,2]
[408503676,1773773443239,-3933.95430575,0.00015235,2]
[408503677,1773773443248,-7354.45829836,0.00015235,2]
[408503678,1773773443257,-929.37600956,0.00015464,2]
[408503679,1773773443266,-694.66,0.00015507,2]
[408503680,1773773443276,-3933.95430575,0.00015768,2]
[408503681,1773773443286,-7354.45829836,0.00015768,2]
[408503682,1773773443296,-694.66,0.00015895,2]
[408503683,1773773443306,-200.0,0.000159,5]
[408503684,1773773443317,-162.45,0.00015941,2]
[408503685,1773773443327,-11044.0650501,0.00016197,2]
[408503686,1773773443337,-27018.73598872,0.00016197,2]
[408503687,1773773443349,-1713.56600069,0.00016197,2]
[408503691,1773773445326,-2063.07262891,0.00016197,2]
[408503692,1773773445645,-2235.35075274,0.00016197,2]
[408503693,1773773863008,-217.99108803,0.0001,2]
[408503694,1773773901178,-1000.0,0.00013001,2]
[408503696,1773773925363,-200.0,0.00013001,2]
[408503697,1773773925391,-250.0,0.00013001,2]
[408503698,1773773925419,-1550.0,0.00013002,2]
[408503699,1773774030394,150.0,0.00011,3]
[408503700,1773774035442,-150.0,0.00013001,14]
[408503701,1773774048199,3333.0,0.00032876,120]
[408503728,1773774631697,-217.957864,0.00012837,2]
[408503729,1773774631708,-131.09915541,0.00012901,2]
[408503730,1773774631720,-1068.90084459,0.00012901,2]
[408503731,1773774631730,-46.43796565,0.00012901,2]
[408503733,1773774631743,-144.40847907,0.00012901,2]
[408503735,1773774631753,-416.95152093,0.00012902,2]
[408503736,1773774631772,-700.05,0.00012902,2]
[408503737,1773774631784,-437.436765,0.00012902,2]
[408503739,1773774631796,-85504.21861407,0.00012902,2]
[408503741,1773774631805,-150.0,0.00013001,2]
[408503743,1773774631815,-19054.7828,0.00013002,2]
[408503745,1773774631825,-41731.50493287,0.00013002,2]
[408503748,1773774631846,-11199.42243893,0.00013002,2]
[408503751,1773774631862,-5672.5664004,0.00013002,2]
[408503760,1773774637663,-3832.77429866,0.00013002,2]
[408503761,1773774637773,-1276.49027241,0.00013002,2]
[408503762,1773774637788,-888.5671607,0.00013002,2]
[408503763,1773774637827,-347.32,0.00013002,2]
[408503764,1773774637840,-6418.34369603,0.00013002,2]
[408503765,1773774637850,-6083.42357782,0.00013002,2]
[408503766,1773774637860,-3211.65836893,0.00013002,2]
[408503767,1773774637873,-58.00295266,0.00013002,2]
[408503768,1773774637882,-150.0,0.000131,2]
[408503769,1773774637892,-1002.24584653,0.00013101,2]
[408503770,1773774637902,-500.0,0.00013101,2]
[408503771,1773774637912,-500.0,0.00013101,2]
[408503772,1773774637923,-500.0,0.00013101,2]
[408503773,1773774637934,-500.0,0.00013101,2]
[408503774,1773774637945,-583.24016321,0.00013101,2]
[408503775,1773774637955,-500.0,0.00013101,2]
[408503776,1773774637965,-500.0,0.00013101,2]
[408503777,1773774637975,-500.0,0.00013101,2]
[408503778,1773774637986,-500.0,0.00013101,2]
[408503780,1773774637996,-500.0,0.00013101,2]
[408503781,1773774638007,-500.0,0.00013101,2]
[408503782,1773774638016,-500.0,0.00013101,2]
[408503783,1773774638026,-500.0,0.00013101,2]
[408503784,1773774638036,-500.0,0.00013101,2]
[408503785,1773774638047,-500.0,0.00013101,2]
[408503787,1773774638057,-500.0,0.00013101,2]
[408503788,1773774638067,-500.0,0.00013101,2]
[408503789,1773774638077,-500.0,0.00013101,2]
[408503790,1773774638088,-500.0,0.00013101,2]
[408503791,1773774638098,-500.0,0.00013101,2]
[408503793,1773774638108,-412.20048078,0.00013101,2]
[408503794,1773774638118,-500.0,0.00013101,2]
[408503795,1773774638128,-500.0,0.00013101,2]
[408503796,1773774638139,-500.0,0.00013101,2]
[408503797,1773774638149,-500.0,0.00013101,2]
[408503798,1773774638159,-500.0,0.00013101,2]
[408503799,1773774638169,-563.89094615,0.00013101,2]
[408503800,1773774638180,-500.0,0.00013101,2]
[408503801,1773774638190,-500.0,0.00013101,2]
[408503802,1773774638200,-500.0,0.00013202,2]
[408503803,1773774638210,-500.0,0.00013202,2]
[408503804,1773774638219,-500.0,0.00013202,2]
[408503805,1773774638229,-500.0,0.00013202,2]
[408503806,1773774638373,-500.0,0.00013202,2]
[408503807,1773774638390,-6083.42357778,0.00013546,2]
[408503808,1773774638400,-3269.66132153,0.00013546,2]
[408503809,1773774638409,-500.0,0.00013698,2]
[408503810,1773774638419,-500.0,0.00013698,2]
[408503811,1773774638428,-500.0,0.00013698,2]
[408503812,1773774638438,-500.0,0.00013698,2]
[408503813,1773774638447,-500.0,0.00013698,2]
[408503814,1773774638457,-373.47479422,0.00013698,2]
[408503815,1773774638466,-2433.06,0.00013718,2]
[408503816,1773774638476,-150.0,0.00013853,2]
[408503817,1773774638486,-150.0,0.00013853,2]
[408503818,1773774638496,-209.77853922,0.00013853,2]
[408503819,1773774638506,-150.0,0.00013853,2]
[408503820,1773774638516,-150.0,0.00013853,2]
[408503821,1773774638526,-919.34,0.00013861,2]
[408503822,1773774638536,-150.0,0.00013861,2]
[408503823,1773774638547,-3240.0,0.00013861,2]
[408503824,1773774638557,-500.0,0.00013984,2]
[408503825,1773774638567,-500.0,0.00013984,2]
[408503826,1773774638577,-500.0,0.00013984,2]
[408503827,1773774638587,-500.0,0.00013984,2]
[408503828,1773774638601,-500.0,0.00013984,2]
[408503829,1773774638612,-500.0,0.00013984,2]
[408503830,1773774638622,-150.0,0.00013984,2]
[408503831,1773774638631,-150.0,0.00013984,2]
[408503832,1773774638641,-500.0,0.00013984,2]
[408503833,1773774638652,-200.31538082,0.00013984,2]
[408503834,1773774638661,-150.0,0.00013984,2]
[408503835,1773774638671,-150.0,0.00013984,2]
[408503836,1773774638681,-150.0,0.00013984,2]
[408503837,1773774638690,-150.0,0.00013984,2]
[408503838,1773774638699,-150.0,0.00013984,2]
[408503839,1773774638709,-250.0,0.00013984,2]
[408503840,1773774638719,-6083.42357778,0.0001409,2]
[408503841,1773774638729,-3269.66132153,0.0001409,2]
[408503842,1773774638740,-150.0,0.00014127,2]
[408503843,1773774638749,-150.0,0.00014127,2]
[408503844,1773774638759,-150.0,0.00014127,2]
[408503845,1773774638769,-155.45652414,0.00014127,2]
[408503846,1773774638780,-150.0,0.00014127,2]
[408503847,1773774638791,-250.0,0.00014127,2]
[408503848,1773774638800,-150.0,0.00014127,2]
[408503849,1773774638810,-155.47092211,0.00014127,2]
[408503850,1773774638820,-153.16199732,0.00014127,2]
[408503851,1773774638831,-212.76778111,0.00014127,2]
[408503852,1773774638841,-166.66,0.00014129,2]
[408503853,1773774638851,-1680.0,0.00014191,2]
[408503854,1773774638861,-255.0,0.00014213,2]
[408503855,1773774638871,-600.0,0.00014229,2]
[408503856,1773774638882,-600.0,0.00014229,2]
[408503857,1773774638892,-600.0,0.00014229,2]
[408503858,1773774638902,-487.6744312,0.00014229,2]